Cogmind - Beta 15 @@@ ROGUE MODE // 2025.06.15 @ 10:03:06 Player: Oldman Pu Result: Destroyed by 53-WNY(R) with Subdweller Beam Cannon Performance ------------- Evolutions (0) 0 Regions Visited (2) 400 Robots Destroyed (20) 100 Value Destroyed (458) 458 Prototype IDs (0) 0 Alien Tech Used (0) 0 Bonus (0) 0 TOTAL SCORE: 958 Bonus ------- None Cogmind --------- Core Integrity 0/250 Matter 289/300 Energy 250/250 System Corruption 0% Temperature Cool (9) Movement Rolling (110) Ox2 Location -10/Subcaves Parts ------- > --- POWER (1) -------- Ion Engine > --- PROPULSION (2) --- Wheel > --- UTILITY (2) ------ Large Storage Unit Utility Shielding > --- WEAPON (2) ------- Autogun > --- INVENTORY (15) --- Ion Engine Wheel Wheel Compact Wheel Huge Storage Unit High-capacity Battery (250) Makeshift Light Armor Plating Medium Laser Beam Cannon Autogun Autogun Autogun Battle Rifle Makeshift Hammer Peak State ------------ > --- POWER ------------ Ion Engine > --- PROPULSION ------- Wheel Wheel > --- UTILITY ---------- Large Storage Unit Utility Shielding > --- WEAPON ----------- Medium Laser Autogun > --- INVENTORY -------- Ion Engine Wheel Wheel Compact Wheel Huge Storage Unit High-capacity Battery Makeshift Light Armor Plating Medium Laser Beam Cannon Autogun Autogun Autogun Makeshift Hammer [Rating: 10] Favorites ----------- Power Ion Engine Engine Ion Engine Propulsion Wheel Wheel Wheel Utility Large Storage Unit Storage Large Storage Unit Protection Power Shielding Weapon Medium Laser Energy Gun Medium Laser Ballistic Gun Light Assault Rifle Build | -11 -10 -10 ------- Run | Yrd Mat Sub Slots Evolved . | . . . Power . | . . . Propulsion . | . . . Utility . | . . . Weapon . | . . . Parts Attached 23 | 6 17 . Power 3 | 1 2 . Engine 3 | 1 2 . Core . | . . . Reactor . | . . . Propulsion 6 | 2 4 . Treads . | . . . Leg . | . . . Wheel 6 | 2 4 . Hover . | . . . Flight . | . . . Utility 8 | 1 7 . Device . | . . . Storage 5 | 1 4 . Processor . | . . . Hackware . | . . . Protection 3 | . 3 . Artifact . | . . . Weapon 6 | 2 4 . Energy Gun 2 | . 2 . Energy Cannon . | . . . Ballistic Gun 4 | 2 2 . Ballistic Cannon . | . . . Launcher . | . . . Special Weapon . | . . . Impact Weapon . | . . . Slashing Weapon . | . . . Piercing Weapon . | . . . Special Melee Weapon . | . . . Unidentified Prototypes . | . . . Parts Lost 7 | . 5 2 Power 1 | . 1 . Propulsion 3 | . 2 1 Utility . | . . . Weapon 3 | . 2 1 Highest Loss Streak 4 | . 4 1 To Critical Strikes . | . . . Average Backups 8 | . 7 12 Power . | . . 1 Propulsion 2 | . 2 3 Utility 2 | . 1 2 Weapon 3 | . 2 6 Tool/Special . | . . . Unused Backups 12 | . . 12 Power 1 | . . 1 Propulsion 2 | . . 2 Utility 2 | . . 2 Weapon 7 | . . 7 Tool/Special . | . . . Average Slot Usage (%) 97 | . 98 94 Engine 13 | . 13 14 Wheel 26 | . 27 23 Storage 16 | . 17 14 Protection 11 | . 10 14 Energy Gun 10 | . 9 13 Ballistic Gun 16 | . 18 14 Peak Build Rating 10 | 6 9 10 Average Rating 8 | 4 7 9 On Entrance 5 | . 6 9 Naked Turns . | . . . Heaviest Build 31 | 13 31 31 Greatest Support 26 | 20 26 20 Greatest Overweight (x) 3 | . 2 3 Average Overweight (x) . | . . 1 Largest Inventory Capacity 25 | 8 25 15 Average Capacity 13 | 6 13 15 Most Carried 14 | . 12 14 Average Carried 8 | . 7 12 Final Capacity 15 | 8 15 15 Final Carried 14 | . 11 14 Class Distribution -------------------- 100% | Mutant Dominant Class ---------------- Mutant | -10/Materials Mutant | -10/Subcaves Resources | -11 -10 -10 ----------- Run | Yrd Mat Sub Matter Collected 662 | 188 419 55 Remotely . | . . . Salvage Created 707 | . 613 94 Parts 36 | . 33 3 Haulers Intercepted 2 | . 2 . Recyclers Shooed 1 | . 1 . Parts Field Recycled . | . . . Retrieved Matter . | . . . Parts Self-Destructed 3 | . . 3 Prevented . | . . . Kills | -11 -10 -10 ------- Run | Yrd Mat Sub Combat Hostiles Destroyed 15 | . 13 2 Guns 15 | . 13 2 Classes Destroyed 5 | . 5 . Hauler 2 | . 2 . Recycler 1 | . 1 . Watcher 2 | . 2 . Swarmer 5 | . 5 . Grunt 10 | . 8 2 Best Kill Streak 4 | . 4 2 Combat Bots Only 4 | . 4 2 Max Kills in Single Turn 1 | . 1 1 Gunslinging . | . . . Exploded . | . . . Melee . | . . . Uniques/NPCs Destroyed . | . . . Combat | -11 -10 -10 -------- Run | Yrd Mat Sub Hostile Shots Fired 129 | . 110 19 Missed 42 | . 37 5 Hits 87 | . 73 14 Projectile 87 | . 73 14 Critical Strikes 1 | . 1 . Damage Taken 1022 | . 769 253 Core 276 | . 165 111 Absorbed by Shields . | . . . Redirected to Shielding 24 | . 16 8 Core Remaining (%) 100 | 100 . . Volleys Fired 74 | . 64 10 Largest 2 | . 2 2 Hottest 73 | . 73 73 Shots Fired 143 | . 124 19 Gun 143 | . 124 19 Cannon . | . . . Launcher . | . . . Special . | . . . Kinetic 98 | . 88 10 Thermal 45 | . 36 9 Explosive . | . . . Electromagnetic . | . . . Robot Hit Streak 11 | . 8 11 Robot Miss Streak 4 | . 4 1 Penetration Max . | . . . Secondary Targets 2 | . 1 1 Max Gunslinging Chain 1 | . 1 1 Shots Hit Robots 95 | . 80 15 Core Hits 36 | . 31 5 Critical Kills . | . . . Critical Parts Destroyed . | . . . Critical Strikes 2 | . 1 1 Burn 2 | . 1 1 Melee Attacks . | . . . Impact . | . . . Slashing . | . . . Piercing . | . . . Sneak Attacks . | . . . Combat Hostiles . | . . . Follow-up Attacks . | . . . Damage Inflicted 998 | . 876 122 Guns 996 | . 874 122 Cannons . | . . . Explosions . | . . . Melee . | . . . Ramming 2 | . 2 . Kinetic 644 | . 585 59 Thermal 352 | . 289 63 Explosive . | . . . Electromagnetic . | . . . Impact . | . . . Slashing . | . . . Piercing . | . . . Highest Corruption . | . . . Average Corruption . | . . . Corruption Purged . | . . . Corruption Blocked . | . . . Overload Shots . | . . . Overflow Damage . | . . . Projectiles . | . . . Explosions . | . . . Melee . | . . . Knockbacks . | . . . Impact . | . . . Kinetic . | . . . Secondary . | . . . Self-Inflicted Damage 1 | . 1 . Shots . | . . . Rammed 1 | . 1 . Targets Rammed 1 | . 1 . Kicked . | . . . Crushed . | . . . Highest Temperature 300 | . 300 11 Average Temperature 96 | . 101 4 Received Heat Transfer 420 | . 309 111 Effects 2 | . 2 . Interference 2 | . 2 . Siege Activations . | . . . Martial Activations . | . . . Shielding Activations . | . . . Robots Disrupted . | . . . Combat Hostiles . | . . . Robots Corrupted . | . . . Combat Hostiles . | . . . Parts Fried . | . . . Impact Corruptions . | . . . Robots Melted . | . . . Combat Hostiles . | . . . Parts Melted 3 | . 3 . Heat Transferred 1184 | . 925 259 Parts Sabotaged . | . . . Parts Stolen . | . . . Parts Stripped . | . . . Power Chain Reactions . | . . . Alert | -11 -10 -10 ------- Run | Yrd Mat Sub Maximum Alert Level . | . . . Low Security (%) 100 | 100 100 . Level 1 . | . . . Level 2 . | . . . Level 3 . | . . . Level 4 . | . . . Level 5 . | . . . High Security . | . . . Max Security . | . . . Peak Influence 84 | . 84 . Initial . | . . . Average 40 | . 42 . Influence Increases 412 | . 362 50 Destroy 0b10 Robot/C 300 | . 260 40 Destroy 0b10 Robot/NC 25 | . 25 . Destroy Leader 68 | . 58 10 Successful Hack 4 | . 4 . Partial Spotted 15 | . 15 . Influence Decreases 412 | . 362 50 Time Decay 352 | . 312 40 Lost Part 60 | . 50 10 Squads Dispatched 2 | . 2 . Investigation 2 | . 2 . Extermination . | . . . Reinforcement . | . . . Assault . | . . . Garrison . | . . . Intercept . | . . . Searches Triggered . | . . . Construction Impeded . | . . . Haulers Reinforced . | . . . Active Scanning Responses . | . . . Cargo Convoy Interrupts . | . . . Stealth | -11 -10 -10 --------- Run | Yrd Mat Sub Distress Signals 1 | . 1 . Communications Jammed . | . . . Distress Signals . | . . . Times Spotted 25 | . 21 4 Peak Tracking Total 6 | . 6 2 Tactical Retreats . | . . . Traps | -11 -10 -10 ------- Run | Yrd Mat Sub Traps Triggered 1 | . 1 . Indirectly . | . . . Trap Hack Attempts . | . . . Triggered . | . . . Disarmed . | . . . Reprogrammed . | . . . Reused . | . . . Traps Extracted . | . . . Installed . | . . . Triggered . | . . . Machines | -11 -10 -10 ---------- Run | Yrd Mat Sub Machines Disabled . | . . . Max in Single Turn . | . . . Machines Repaired . | . . . Machines Dismantled . | . . . Machines Sabotaged . | . . . Overloaded Fab Kills . | . . . Hacking | -11 -10 -10 --------- Run | Yrd Mat Sub Machines Accessed 4 | . 4 . Terminals 2 | . 2 . Fabricators . | . . . Repair Stations . | . . . Recycling Units 2 | . 2 . Scanalyzers . | . . . Garrison Access . | . . . Total Hacks 11 | . 11 . Successful 4 | . 4 . Failed 7 | . 7 . Catastrophic . | . . . Database Lockouts . | . . . Manual . | . . . Terminals 9 | . 9 . Fabricators . | . . . Repair Stations . | . . . Recycling Units 2 | . 2 . Scanalyzers . | . . . Garrison Access . | . . . Terminal Hacks 2 | . 2 . Emergency Access Points 1 | . 1 . Locate Traps 1 | . 1 . Fabricator Hacks . | . . . Repair Station Hacks . | . . . Recycling Unit Hacks 2 | . 2 . Report Inventory 2 | . 2 . Scanalyzer . | . . . Garrison Access Hacks . | . . . Unauthorized Hacks . | . . . Terminals . | . . . Fabricators . | . . . Repair Stations . | . . . Recycling Units . | . . . Scanalyzers . | . . . Garrison Access . | . . . Data Cores Recovered . | . . . Used . | . . . Hacking Detections 2 | . 2 . Full Trace Events 2 | . 2 . Feedback Events . | . . . Feedback Blocked . | . . . Robot Schematics Acquired . | . . . Robots Built . | . . . Authchips . | . . . Time . | . . . Total Robot Build Rating . | . . . Part Schematics Acquired . | . . . Parts Built . | . . . Authchips . | . . . Time . | . . . Total Part Build Rating . | . . . Parts Repaired . | . . . Time . | . . . Parts Recycled . | . . . Recycled Matter . | . . . Retrieved Matter . | . . . Retrieved Components . | . . . Parts Scanalyzed . | . . . Part Schematics Acquired . | . . . Parts Damaged . | . . . Bothacking | -11 -10 -10 ------------ Run | Yrd Mat Sub Used RIF Installer . | . . . Robots Hacked . | . . . Non-combat . | . . . Combat . | . . . Robot Hacks Applied . | . . . Relay Couplers Released . | . . . Fabnet Peak Effective % . | . . . Robots Rewired . | . . . Allies Hacked . | . . . Hacks Repelled . | . . . Allies | -11 -10 -10 -------- Run | Yrd Mat Sub Total Allies . | . . . Largest Group . | . . . Highest-Rated Group . | . . . Highest-Rated Ally . | . . . Total Orders . | . . . Ally Attacks . | . . . Total Damage . | . . . Kills . | . . . Allies Corrupted . | . . . Allies Melted . | . . . Intel | -11 -10 -10 ------- Run | Yrd Mat Sub Active Infowar (turns) . | . . . Robot Analysis Total . | . . . Derelict Logs Recovered 1 | . . 1 Drone Launches . | . . . Drone Recoveries . | . . . Exploration | -11 -10 -10 ------------- Run | Yrd Mat Sub Turns Passed 1099 | 36 727 336 Spaces Moved 856 | 36 537 283 Core 4 | 4 . . Treads . | . . . Legs . | . . . Wheels 852 | 32 537 283 Hover . | . . . Flight . | . . . Fastest Speed 50 | 50 80 95 Average Speed 94 | 76 92 101 Slowest Speed 125 | 80 115 125 Overloaded Moves . | . . . Propulsion Burnouts . | . . . Robots Hopped . | . . . Potential Cave-ins . | . . . Cave-ins Triggered . | . . . Exploration Rate (%) 38 | 3 85 27 Regions Visited 2 Branch Regions 1 Pre-discovered Areas 1 | . . 1 Known Exits Taken . | . . . Unknown Exits Taken 2 | 1 1 . Scrap Searched . | . . . Spaces Dug . | . . . Terrain Destroyed . | . . . Melee . | . . . Projectile . | . . . AOE . | . . . Terrain Rammed . | . . . Walls Destroyed . | . . . Machines Disabled . | . . . Actions | -11 -10 -10 --------- Run | Yrd Mat Sub Total 1006 | 41 650 315 Wait 26 | . 7 19 Move 854 | 35 536 283 Hop . | . . . Pick Up 15 | . 12 3 Fast Attach 9 | 6 3 . Attach 4 | . 4 . Detach . | . . . Swap 14 | . 14 . Drop 9 | . 9 . Fire 74 | . 64 10 Melee . | . . . Ram 1 | . 1 . Kick . | . . . Crush . | . . . Escape Stasis . | . . . Rewire . | . . . Trap . | . . . Miscellaneous . | . . . Route ------- -11/Scrapyard -10/Materials (discovered 4 exits: [*Mat x2] / [*Min] / [*Sub]) -10/Subcaves (discovered 1 exit: [*Mat]) History --------- Turn | Location | Event 18 | -11/Scrapyard | Discovered new exit (range 16) 37 | -11/Scrapyard | Entered Materials 213 | -10/Materials | Discovered new exit (range 8) 338 | -10/Materials | Lost 4 parts (1p1n2w) 388 | -10/Materials | Build established: Mutant 439 | -10/Materials | Core integrity fell below 50% 522 | -10/Materials | Discovered new exit (range 10) 695 | -10/Materials | Discovered new exit (range 4) 751 | -10/Materials | Discovered new exit (range 14) 764 | -10/Materials | Entered Subcaves 765 | -10/Subcaves | Approached by a straggling Scientist 777 | -10/Subcaves | Learned location of Recycling (-8) 861 | -10/Subcaves | Shifting Twisted Machinery released Mak. Hammer 862 | -10/Subcaves | Shifting Twisted Machinery released Mak. Light Armor Plating 892 | -10/Subcaves | Curiously followed by a Cobbler waking with a query about "LVR3C" 935 | -10/Subcaves | Shifting Twisted Machinery released Battle Rifle 942 | -10/Subcaves | Shifting Twisted Machinery released Scrap Shield 978 | -10/Subcaves | Discovered new exit (range 15) 1087 | -10/Subcaves | Core integrity fell below 20% 1100 | -10/Subcaves | Destroyed by 53-WNY(R) with Subdweller Beam Cannon Last Messages --------------- 00938_ 7D-USG(O) collects matter. Scrap Shield falls loose from the Twisted Machinery. 00945_ Acquired Battle Rifle. LR-ZND(c): "I think it's somewhere south of here" 00978_ EXIT=FOUND 00998_ G-47 Trooper suffers critical hit (Burn). 00999_ Wheel destroyed. 01004_ G-47 Trooper destroyed. 01004_ Switching to secondary target: G-34 Mercenary. 01007_ Subatomizers dissect the Aluminum Leg. 01009_ G-34 Mercenary destroyed. 01016_ Aluminum Leg fries itself beyond repair. 01018_ Acquired 19 matter. LR-ZND(c): "I think it's somewhere southeast of here" 01019_ Sml. Laser fries itself beyond repair. 01020_ Aluminum Leg fries itself beyond repair. 01022_ 7D-USG(O) collects matter. 01062_ 7D-USG(O) puts together Sub. Laser. LR-ZND(c): "I think it's somewhere southeast of here" 01088_ Med. Laser destroyed. Map ----- +----------------------------------------------------+ | ????## #??????????????????????????????????? | | ????# #??????????????????????????????????? | | ????# ##??????????????????????????????????? | | ????# ##??????????????????????????????????? | | ???## #####??????????????????????????????? | | ???# ##?????????????????????????????? | | ???# ##????????????????????????????? | | ???# ## [ ##???????????????????????????? | | # ###### "##??????????????????????????? | | # ### #?#??## ##?????????????????????????? | | ##??####### ??# "#?????????????????????????? | | ??????## ### ""##? ??????????????????????? | | ##???????# """"# "??????????????????????? | | ?????????# """" ""??????????????????????? | | ????????# "" "" ??????????????????????? | | ????????# ## ###"" ??????????????????????? | | ????????# ###?# ##?##???????????????????????? | | ????????## ?????# O ;#??????????????????????????? | | ?????????# ?????## ###????????????????????????? | | ?????????#?????## "R ##???????????????????????? | | ????????# ### #???????????????????????? | | ????????# ##??????????????????????? | | ???????# ##?????????????????????? | | ??????# ##????????????????????? | | ?????? ## #????????????????????? | | ??????? ## @ #????????????????????? | | ??????? ## #???????????????????? | | ??????? #### ## #???????????????????? | | ???????? #???##?# ## #???????????????????? | | ????????######?????? #? ##???????????????????? | | ??????????????????? ##?##????????????????????? | | ?????????????????? #????????????????????????? | | ?????????????????# ##????????????????????????? | | ?????????????????## ##??????????????????????????? | | ??????????????????# ????????????????????????????? | | ?????????????????? #????????????????????????????? | | ????????????????? ?????????????????????????????? | | ???????????????? ??????????????????????????????? | | ?????????????????????????????????????????????????? | | ?????????????????????????????????????????????????? | | ?????????????????????????????????????????????????? | | ?????????????????????????????????????????????????? | | ?????????????????????????????????????????????????? | | ?????????????????????????????????????????????????? | | ?????????????????????????????????????????????????? | | ?????????????????????????????????????????????????? | | ?????????????????????????????????????????????????? | | ?????????????????????????????????????????????????? | | ?????????????????????????????????????????????????? | | ?????????????????????????????????????????????????? | +----------------------------------------------------+ Best States ------------- Heat Dissipation 25 Energy Generation 10 Energy Capacity 250 Matter Stores 300 Matter Capacity 350 Sight Range 16 Terrain Scan Density 10 Power Shielding 33 Utility Shielding 33 Evasion (%) 44 Item Schematics ----------------- None Robot Schematics ------------------ None Fabricated ------------ Nothing Repaired ---------- Nothing Alien Tech Used ----------------- None Achievements -------------- None Challenges ------------ None Game ------ Seed TowerFireMegatreads Manual? 0 Play Time 00:17:56 Cumulative 302.0 hours Start 2025.06.15 @ 09:46:43 End 2025.06.15 @ 10:03:06 Sessions 1 Manual Loads 0 Difficulty Rogue Special Mode None Game No. 253 Rogue 241 Adventurer 12 Explorer 0 Win Type - Total 1 Types 1/0/0/0/0/0/0/0/0/0 Lore% 30 Gallery% 44 Achievement% 37 Wizard Run 0 Options --------- Layout 1 ASCII 0 Keyboard 0 Movement Mouse Keybinds 0 Fullscreen 1 Font 32/SmallcapsGlow Map View 77x35 Zoom Use 0% Tactical HUD 1 Map Filters NONE Filters NONE Steam 1 RUN: 3e133142-7b28-4e75-b703-197ff1640408